bitfinex-derivatives/quotes_SOLF0:USTF0_20251122
["timestamp","ask_amount","ask_price","bid_price","bid_amount"]
[1763855204667,3.0414232,127.6,127.58,3.11666226]
[1763855204864,3.0414232,127.6,127.58,0.05666226]
[1763855205669,2.99,127.59,127.58,0.05666226]
[1763855205868,2.99,127.58,127.53,3.06]
[1763855206067,2.99,127.57,127.53,3.06]
[1763855206769,0.05850447,127.56,127.54,0.05133116]
[1763855206965,0.05850447,127.56,127.54,3.11133116]
[1763855207976,0.05850447,127.56,127.54,10.17233116]
[1763855208169,0.05850447,127.56,127.55,3.06]
[1763855209575,2.99,127.6,127.57,3.06]
[1763855210076,2.99,127.6,127.57,10.1193]
[1763855210677,3.04709262,127.6,127.58,3.06]
[1763855211979,0.05709262,127.6,127.58,10.1187]
[1763855212168,0.05709262,127.6,127.59,3.06]
[1763855217582,0.05709262,127.6,127.57,3.11429547]
[1763855217583,3.04709262,127.6,127.57,3.11429547]
[1763855219181,3.04709262,127.6,127.57,0.05429547]
[1763855220275,10.10499262,127.6,127.57,0.05429547]
[1763855220483,3.04709262,127.6,127.57,0.05429547]
[1763855221273,0.05709262,127.6,127.57,3.11429547]
[1763855221779,3.04709262,127.6,127.57,3.11429547]
[1763855224786,0.05709262,127.6,127.58,3.06]
[1763855224979,3.04709262,127.6,127.57,3.11429547]
[1763855225182,3.04709262,127.6,127.57,0.05429547]
[1763855226289,3.04709262,127.6,127.57,3.19429547]
[1763855226986,0.05709262,127.6,127.57,3.19429547]
[1763855227174,0.05709262,127.6,127.57,12.9237739]
[1763855227375,3.11709262,127.6,127.58,3.14]
[1763855228684,3.11709262,127.6,127.57,0.05429547]
[1763855228988,1.81654032,127.59,127.57,0.05429547]
[1763855229190,3.06,127.58,127.57,0.05429547]
[1763855230487,0.05709262,127.6,127.57,3.19429547]
[1763855230488,3.11709262,127.6,127.57,3.19429547]
[1763855235391,3.11709262,127.6,127.58,3.14]
[1763855235992,3.11709262,127.6,127.57,10.25369547]
[1763855242900,0.05709262,127.6,127.59,3.14]
[1763855244100,10.1157,127.64,127.61,3.14]
[1763855244310,3.06,127.64,127.61,3.14]
[1763855245105,3.11699197,127.64,127.61,3.19376346]
[1763855246207,3.11699197,127.64,127.61,10.25086346]
[1763855247013,3.11699197,127.64,127.61,3.19376346]
[1763855248720,0.05699197,127.64,127.62,3.14]
[1763855249413,3.11699197,127.64,127.61,3.19376346]
[1763855250520,3.11699197,127.64,127.61,0.05376346]
[1763855251416,3.06,127.63,127.61,0.05376346]
[1763855253216,3.06,127.62,127.61,0.05376346]
[1763855255218,3.06,127.63,127.61,3.19376346]
[1763855255616,3.06,127.63,127.61,0.05376346]
[1763855256915,3.06,127.63,127.61,3.24376346]
[1763855257221,3.06,127.63,127.61,0.05376346]
[1763855258523,0.05699197,127.64,127.61,3.24376346]
[1763855259225,0.05699197,127.64,127.61,10.30086346]
[1763855259527,0.05699197,127.64,127.62,3.06]
[1763855259928,2.8371209,127.68,127.63,3.06]
[1763855259929,3.09,127.68,127.63,3.06]
[1763855260428,7.053,127.69,127.65,3.06]
[1763855260429,3.09,127.69,127.65,3.06]
[1763855260925,0.05873515,127.68,127.66,3.11060076]
[1763855266121,0.05873515,127.68,127.67,3.06]
[1763855269120,16.4,127.7,127.68,3.06]
[1763855269325,3.09,127.73,127.68,3.06]
[1763855270327,0.05760535,127.72,127.7,3.06]
[1763855270729,3.14760535,127.72,127.7,3.06]
[1763855271331,0.05760535,127.72,127.7,3.06]
[1763855273428,0.05760535,127.72,127.7,10.1121]
[1763855273627,0.05760535,127.72,127.71,3.06]
[1763855274338,16.4,127.75,127.71,3.06]
[1763855275328,0.05069966,127.74,127.73,3.06]
[1763855277238,10.1377,127.79,127.73,3.06]
[1763855277534,3.09,127.79,127.73,3.06]
[1763855278336,0.05006481,127.77,127.75,3.11408726]
[1763855279624,3.14006481,127.77,127.75,3.11408726]
[1763855279828,3.14006481,127.77,127.75,0.05408726]
[1763855280227,3.14006481,127.77,127.75,3.11408726]
[1763855280426,3.14006481,127.77,127.75,0.05408726]
[1763855281040,3.14006481,127.77,127.75,3.11408726]
[1763855281636,10.18866481,127.77,127.75,0.05408726]
[1763855281840,3.09,127.75,127.7,3.06]
[1763855282935,3.09,127.74,127.7,3.06]
[1763855283136,3.14438329,127.73,127.71,0.04961041]
[1763855283538,3.09,127.72,127.71,0.04961041]
[1763855285341,3.09,127.7,127.65,3.06]
[1763855286138,19.53,127.72,127.66,3.24]
[1763855286345,0.04985968,127.7,127.69,3.24]
[1763855294343,16.38,127.72,127.69,3.24]
[1763855294344,16.38,127.72,127.7,3.24]
[1763855294548,10.1994,127.76,127.7,3.24]
[1763855295450,0.05639966,127.74,127.72,3.2981418]
[1763855295640,3.20639966,127.74,127.72,3.2981418]
[1763855295844,3.20639966,127.74,127.72,0.0581418]
[1763855298246,3.20639966,127.74,127.72,3.2981418]
[1763855299648,0.05639966,127.74,127.72,3.2981418]
[1763855299841,3.20639966,127.74,127.72,3.2981418]
[1763855301244,0.05639966,127.74,127.72,3.2981418]
[1763855303243,0.05639966,127.74,127.73,3.24]
[1763855309271,3.20639966,127.74,127.72,0.0581418]
[1763855309659,10.25659966,127.74,127.72,0.0581418]
[1763855309861,3.15,127.73,127.72,0.0581418]
[1763855310968,8.91899225,127.74,127.72,0.0581418]
[1763855311166,5.01879225,127.74,127.72,0.0581418]
[1763855311566,3.15,127.73,127.72,0.0581418]
[1763855312650,4.71,127.73,127.69,9.72947843]
[1763855312857,3.15,127.71,127.67,12.96947843]
[1763855313555,1.81239259,127.74,127.68,3.24]
[1763855313758,0.05000205,127.72,127.71,3.24]
[1763855314054,3.20000205,127.72,127.7,3.29613014]
[1763855315268,0.05000205,127.72,127.7,3.29613014]
[1763855318063,0.05000205,127.72,127.7,10.34823014]
[1763855318264,0.05000205,127.72,127.71,3.17]
[1763855325978,3.24000205,127.72,127.7,16.83770857]
[1763855326283,3.24000205,127.72,127.7,0.05613014]
[1763855327778,10.29120205,127.72,127.7,0.05613014]
[1763855327968,3.19,127.71,127.7,0.05613014]
[1763855328173,5.00239259,127.71,127.7,0.05613014]
[1763855331872,3.19,127.69,127.65,12.90947843]
[1763855332279,3.19,127.68,127.65,12.90947843]
[1763855332683,3.19,127.68,127.65,3.18]
[1763855332881,0.05508137,127.68,127.65,12.96062277]
[1763855333184,0.05508137,127.68,127.67,3.18]
[1763855334178,0.05508137,127.68,127.66,3.18]
[1763855335283,0.05508137,127.68,127.66,10.2343]
[1763855335483,0.05508137,127.68,127.67,3.18]
[1763855335685,3.24508137,127.68,127.66,10.2343]
[1763855336084,0.05508137,127.68,127.67,3.18]
[1763855336988,0.05508137,127.68,127.66,10.2343]
[1763855337587,3.24508137,127.68,127.66,3.18]
[1763855337785,3.24508137,127.68,127.65,3.23114434]
[1763855339691,3.24508137,127.68,127.65,10.28614434]
[1763855339891,3.24508137,127.68,127.66,3.18]
[1763855340281,3.24508137,127.68,127.65,10.28614434]
[1763855340894,3.24508137,127.68,127.65,3.23114434]
[1763855341501,3.19,127.67,127.65,0.05114434]
[1763855341687,3.19,127.67,127.65,3.23114434]
[1763855343189,0.05508137,127.68,127.65,3.23114434]
[1763855344297,0.05508137,127.68,127.66,3.18]
[1763855345090,3.24508137,127.68,127.66,3.18]
[1763855345496,0.05508137,127.68,127.66,3.18]
[1763855345897,3.16508137,127.68,127.66,3.18]
[1763855349303,0.05508137,127.68,127.66,3.18]
[1763855353309,0.05508137,127.68,127.66,10.2343]
[1763855353605,0.05508137,127.68,127.67,3.1]
[1763855355994,3.24508137,127.68,127.65,3.15114434]
[1763855362808,0.05508137,127.68,127.66,3.1]
[1763855364311,0.05508137,127.68,127.67,3.1]
[1763855367013,0.05508137,127.68,127.65,3.15114434]
[1763855367014,3.24508137,127.68,127.65,3.15114434]
[1763855367512,3.24508137,127.68,127.66,3.1]
[1763855371610,3.19,127.67,127.65,0.05114434]
[1763855373214,3.19,127.66,127.65,0.05114434]
[1763855374210,3.19,127.67,127.65,3.15114434]
[1763855374514,3.19,127.67,127.65,0.05114434]
[1763855376114,3.15508137,127.68,127.65,3.07114434]
[1763855376314,0.05508137,127.68,127.65,3.07114434]
[1763855376512,0.05508137,127.68,127.65,12.80062277]
[1763855376708,0.05508137,127.68,127.66,3.02]
[1763855379917,0.05508137,127.68,127.67,3.16]
[1763855387822,0.05508137,127.68,127.65,12.94062277]
[1763855387823,3.18508137,127.68,127.65,12.94062277]
[1763855388020,3.18508137,127.68,127.65,0.05114434]
[1763855388926,10.23848137,127.68,127.65,3.21114434]
[1763855389126,3.13,127.67,127.65,3.21114434]
[1763855390927,0.05508137,127.68,127.65,3.21114434]
[1763855391124,0.05508137,127.68,127.65,12.94062277]
[1763855391426,0.05508137,127.68,127.66,3.16]
[1763855392523,3.18508137,127.68,127.65,9.78062277]
[1763855392728,3.13,127.67,127.65,0.05114434]
[1763855394020,3.13,127.66,127.65,0.05114434]
[1763855394229,8.83931489,127.66,127.65,0.05114434]
[1763855394426,10.1851,127.65,127.61,12.88947843]
[1763855394628,3.13,127.64,127.61,12.88947843]
[1763855395021,3.13,127.64,127.61,3.16]
[1763855395431,3.1834231,127.64,127.61,3.21869763]
[1763855397928,3.13,127.63,127.61,0.05869763]
[1763855398129,3.13,127.62,127.61,0.05869763]
[1763855400325,3.13,127.62,127.57,12.88947843]
[1763855400530,3.13,127.6,127.56,9.72947843]
[1763855400733,3.13,127.58,127.55,3.16]
[1763855401331,3.13,127.58,127.54,1.36272859]
[1763855401644,10.2392426,127.58,127.55,0.05552307]
[1763855401842,3.13,127.57,127.55,0.05552307]
[1763855402637,3.13,127.56,127.52,3.16]
[1763855403440,3.13,127.58,127.52,3.16]
[1763855404036,0.05994863,127.56,127.54,3.21627531]
[1763855404236,3.18994863,127.56,127.54,3.21627531]
[1763855404729,0.05994863,127.56,127.54,3.21627531]
[1763855406236,0.05994863,127.56,127.55,3.03]
[1763855407335,0.05994863,127.56,127.54,7.11707531]
[1763855407336,16.38,127.59,127.57,3.03]
[1763855408243,16.43115868,127.59,127.57,3.08184261]
[1763855408647,0.05115868,127.59,127.57,3.08184261]
[1763855408841,3.29115868,127.59,127.57,3.08184261]
[1763855412051,3.29115868,127.59,127.57,0.05184261]
[1763855412446,3.29115868,127.59,127.57,3.08184261]
[1763855421053,3.29115868,127.59,127.57,0.05184261]
[1763855421960,3.24,127.58,127.57,0.05184261]
[1763855422151,0.05115868,127.59,127.57,3.08184261]
[1763855422353,3.29115868,127.59,127.57,3.08184261]
[1763855422654,3.29115868,127.59,127.57,0.05184261]
[1763855425968,3.29115868,127.59,127.57,3.08184261]
[1763855428666,0.05115868,127.59,127.57,3.08184261]
[1763855430264,0.05115868,127.59,127.57,10.14124261]
[1763855430466,19.64,127.63,127.58,3.03]
[1763855431070,19.64,127.63,127.6,3.03]
[1763855431469,3.24,127.62,127.6,3.08299372]
[1763855432264,3.24,127.62,127.6,0.05299372]
[1763855433566,3.24,127.62,127.6,3.08299372]
[1763855433762,16.45968201,127.63,127.6,3.08299372]
[1763855433965,0.05968201,127.63,127.6,3.08299372]
[1763855434367,0.05968201,127.63,127.62,3.03]
[1763855435466,19.64,127.69,127.63,3.03]
[1763855436571,0.05430494,127.67,127.65,3.32183686]
[1763855438465,0.05430494,127.67,127.66,3.27]
[1763855440366,3.17430494,127.67,127.65,3.18183686]
[1763855440668,0.05430494,127.67,127.65,3.18183686]
[1763855441364,3.17430494,127.67,127.65,0.05183686]
[1763855442369,0.05430494,127.67,127.65,3.18183686]
[1763855442570,3.17430494,127.67,127.65,3.18183686]
[1763855443468,3.17430494,127.67,127.65,0.05183686]
[1763855444161,3.12,127.66,127.65,0.05183686]
[1763855448078,3.12,127.65,127.61,3.13]
[1763855449173,3.17719905,127.64,127.62,0.05019822]
[1763855450170,0.05719905,127.64,127.62,3.18019822]
[1763855463485,3.17719905,127.64,127.62,0.05019822]
[1763855464079,0.05719905,127.64,127.62,3.18019822]
[1763855464573,0.05719905,127.64,127.62,10.23679822]
[1763855464776,0.05719905,127.64,127.63,3.13]
[1763855466278,4.93614341,127.69,127.65,3.1]
[1763855466479,21.48614341,127.71,127.65,3.1]
[1763855466779,3.29,127.7,127.65,3.1]
[1763855466980,3.29,127.7,127.66,3.1]
[1763855467385,0.05169848,127.69,127.67,3.15908246]
[1763855475094,3.29,127.74,127.68,3.1]
[1763855476195,0.05862155,127.72,127.71,3.1]
[1763855479495,7.0493,127.76,127.71,3.1]
[1763855480092,10.3393,127.76,127.71,3.1]
[1763855480297,10.3393,127.76,127.72,3.1]
[1763855480500,3.34486691,127.75,127.73,3.15795616]
[1763855481000,0.05486691,127.75,127.73,3.15795616]
[1763855483300,3.34486691,127.75,127.73,0.05795616]
[1763855483507,1.81614341,127.74,127.68,3.1]
[1763855483703,5.10614341,127.74,127.69,3.1]
[1763855483905,3.29,127.73,127.69,3.1]
[1763855484709,0.05446956,127.72,127.71,3.1]
[1763855489309,1.81614341,127.77,127.71,3.1]
[1763855489716,10.3391,127.76,127.72,3.1]
[1763855489913,5.10614341,127.77,127.72,3.1]
[1763855490523,0.05447412,127.76,127.74,3.1]
[1763855490919,3.34447412,127.76,127.74,3.1]
[1763855491414,0.05447412,127.76,127.74,3.1]
[1763855492016,0.05447412,127.76,127.74,10.15]
[1763855492214,0.05447412,127.76,127.75,3.1]
[1763855494023,0.05447412,127.76,127.73,0.05503138]
[1763855494224,3.34447412,127.76,127.73,3.15503138]
[1763855494423,0.05447412,127.76,127.73,3.15503138]
[1763855495021,3.34447412,127.76,127.73,3.15503138]
[1763855496322,0.05447412,127.76,127.73,3.15503138]
[1763855499229,0.05447412,127.76,127.73,10.20553138]
[1763855499424,0.05447412,127.76,127.74,3.21]
[1763855501532,3.18447412,127.76,127.73,0.05503138]
[1763855501925,3.18447412,127.76,127.73,3.26503138]
[1763855505728,3.18447412,127.76,127.73,0.05503138]
[1763855506034,3.18447412,127.76,127.73,3.26503138]
[1763855506842,3.13,127.75,127.73,0.05503138]
[1763855507532,10.1796,127.75,127.73,0.05503138]
[1763855507834,3.13,127.74,127.73,0.05503138]
[1763855509339,3.13,127.75,127.73,0.05503138]
[1763855509635,22.3963468,127.76,127.73,3.26503138]
[1763855509838,3.13,127.75,127.73,3.26503138]
[1763855511737,3.13,127.75,127.73,0.05503138]
[1763855515630,10.1797,127.75,127.73,0.05503138]
[1763855515836,3.13,127.74,127.73,0.05503138]
[1763855519543,5.96187268,127.74,127.73,0.05503138]
[1763855519741,5.96187268,127.74,127.67,12.93947843]
[1763855519742,3.13,127.7,127.67,12.93947843]
[1763855519941,3.13,127.7,127.67,3.21]
[1763855521043,3.18392485,127.7,127.67,3.26138164]
[1763855521638,3.18392485,127.7,127.68,3.21]
[1763855521838,0.05392485,127.7,127.68,3.21]
[1763855522042,3.18392485,127.7,127.68,3.21]
[1763855523249,3.13,127.69,127.62,12.93947843]
[1763855523452,3.13,127.67,127.63,3.21]
[1763855523636,3.13,127.66,127.63,3.21]
[1763855524252,0.05898214,127.66,127.63,3.27001172]
[1763855525247,0.05898214,127.66,127.64,3.21]
[1763855527046,3.21898214,127.66,127.64,3.21]
[1763855529453,3.21898214,127.66,127.64,10.2655]
[1763855529454,0.05898214,127.66,127.64,10.2655]
[1763855529950,3.21898214,127.66,127.64,3.14]
[1763855530149,3.21898214,127.66,127.63,0.06001172]
[1763855530659,3.16,127.65,127.63,0.06001172]
[1763855531452,10.2152,127.65,127.63,0.06001172]
[1763855531657,3.16,127.64,127.63,0.06001172]
[1763855532651,3.16,127.64,127.59,10.1982]
[1763855532852,3.16,127.63,127.59,3.14]
[1763855533550,3.16,127.59,127.54,10.2009]
[1763855533853,3.16,127.59,127.54,3.14]
[1763855534062,0.05373718,127.58,127.56,10.1998]
[1763855534250,0.05373718,127.58,127.57,3.14]
[1763855537062,3.16,127.65,127.59,3.14]
[1763855537649,3.16,127.65,127.61,3.14]
[1763855537849,3.21531463,127.64,127.62,0.05074887]
[1763855540965,3.21531463,127.64,127.62,3.19074887]
[1763855540966,0.05531463,127.64,127.62,3.19074887]
[1763855542569,3.21531463,127.64,127.62,0.05074887]
[1763855546072,0.05531463,127.64,127.62,3.19074887]
[1763855546466,3.21531463,127.64,127.62,3.19074887]
[1763855547167,0.05531463,127.64,127.62,3.19074887]
[1763855548467,0.05531463,127.64,127.62,10.24734887]
[1763855548663,3.21531463,127.64,127.62,0.05074887]
[1763855551071,3.21531463,127.64,127.62,3.19074887]
[1763855551569,0.05531463,127.64,127.62,3.19074887]
[1763855552969,3.21531463,127.64,127.62,3.19074887]
[1763855553765,0.05531463,127.64,127.62,3.19074887]
[1763855553973,0.05531463,127.64,127.62,10.24734887]
[1763855554764,3.21531463,127.64,127.62,10.24734887]
[1763855555266,3.21531463,127.64,127.62,3.19074887]
[1763855556371,0.05531463,127.64,127.62,3.19074887]
[1763855557365,3.08531463,127.64,127.62,3.36074887]
[1763855557872,3.08531463,127.64,127.62,0.05074887]
[1763855558072,3.03,127.63,127.62,0.05074887]
[1763855562380,3.06,127.62,127.59,3.31]
[1763855563380,3.06,127.62,127.59,3.3605412]
[1763855563782,3.06,127.62,127.59,10.4188412]
[1763855566791,0.05531463,127.64,127.61,3.11]
[1763855567089,3.11531463,127.64,127.61,3.11]
[1763855568483,3.06,127.63,127.61,3.11]
[1763855570087,0.05531463,127.64,127.61,3.11]
[1763855570286,3.11531463,127.64,127.61,3.11]
[1763855571292,3.11531463,127.64,127.62,3.11]
[1763855571494,3.11531463,127.64,127.62,3.16236328]
[1763855577888,10.17101463,127.64,127.62,0.05236328]
[1763855578092,3.06,127.63,127.62,0.05236328]
[1763855579394,0.05531463,127.64,127.62,3.16236328]
[1763855579594,3.11531463,127.64,127.62,3.16236328]
[1763855581003,3.06,127.69,127.63,3.11]
[1763855581197,3.06,127.69,127.64,3.11]
[1763855582000,0.05358007,127.68,127.65,3.16782976]
[1763855582203,3.11358007,127.68,127.65,3.16782976]
[1763855583094,3.06,127.67,127.65,3.16782976]
[1763855587999,3.19358007,127.68,127.65,3.16782976]
[1763855588208,0.05358007,127.68,127.66,3.19]
[1763855589510,0.05358007,127.68,127.67,3.19]
[1763855591712,3.19358007,127.68,127.65,3.24782976]
[1763855594410,3.19358007,127.68,127.65,10.30272976]
[1763855594610,0.05358007,127.68,127.66,3.19]
[1763855595510,3.19358007,127.68,127.66,3.19]
[1763855613937,3.14,127.67,127.65,0.05782976]
[1763855614936,3.14,127.66,127.65,0.05782976]
[1763855620134,3.14,127.66,127.61,10.1771]
[1763855620337,3.14,127.66,127.62,3.12]
[1763855621136,3.11,127.64,127.63,0.05231711]
[1763855623338,3.11,127.64,127.6,3.12]
[1763855624140,3.11,127.63,127.6,3.12]
[1763855624437,3.11,127.63,127.6,3.17157303]
[1763855625231,0.05515979,127.65,127.61,112.8965]
[1763855625439,0.05515979,127.65,127.63,3.12]
[1763855625639,0.05515979,127.65,127.63,3.17244355]
[1763855626338,0.05515979,127.65,127.63,10.22844355]
[1763855626539,0.05515979,127.65,127.64,3.12]
[1763855632833,3.11,127.68,127.66,3.12]
[1763855633841,3.16808463,127.68,127.66,3.17140938]
[1763855639544,0.05808463,127.68,127.66,3.17140938]
[1763855640644,3.16808463,127.68,127.66,3.17140938]
[1763855641444,3.16808463,127.68,127.66,0.05140938]
[1763855648645,10.22158463,127.68,127.66,0.05140938]
[1763855648848,3.2,127.67,127.66,0.05140938]
[1763855649745,0.05808463,127.68,127.66,3.25140938]
[1763855650146,10.31148463,127.68,127.66,0.05140938]
[1763855650346,3.2,127.67,127.66,0.05140938]
[1763855654351,3.2,127.64,127.6,12.92947843]
[1763855654555,3.2,127.64,127.6,3.2]
[1763855655556,3.25086182,127.63,127.61,3.25662036]
[1763855657554,0.05086182,127.63,127.61,3.25662036]
[1763855660153,0.05086182,127.63,127.62,3.2]
[1763855660354,16.38,127.67,127.62,3.2]
[1763855660654,10.2532,127.69,127.63,3.2]
[1763855661245,3.2,127.68,127.63,3.2]
[1763855661446,3.25112247,127.67,127.65,3.2]
[1763855661645,0.05112247,127.67,127.65,3.2]
[1763855669258,0.05112247,127.67,127.64,16.8368101]
[1763855669259,3.25112247,127.67,127.64,12.9814101]
[1763855669468,3.25112247,127.67,127.64,0.05193167]
[1763855671064,3.2,127.65,127.64,0.05193167]
[1763855677077,3.2,127.65,127.6,16.78727843]
[1763855677078,3.03,127.61,127.59,12.82947843]
[1763855677375,7.0568,127.62,127.59,3.1]
[1763855677376,3.03,127.62,127.59,3.1]
[1763855678078,3.0822099,127.62,127.59,3.15404944]
[1763855678780,3.03,127.6,127.59,0.05404944]
[1763855684884,7.0573,127.61,127.59,3.36404944]
[1763855685083,10.0773,127.61,127.59,3.36404944]
[1763855685677,3.02,127.61,127.59,3.36404944]
[1763855688088,3.02,127.61,127.59,0.05404944]
[1763855688885,3.02,127.6,127.55,3.31]
[1763855689185,3.02,127.57,127.55,3.31]
[1763855689387,3.02,127.57,127.53,3.31]
[1763855689782,0.05504273,127.56,127.54,3.35937272]
[1763855693185,0.05504273,127.56,127.55,3.31]
[1763855694586,16.38,127.59,127.56,3.31]
[1763855695586,0.05359811,127.59,127.56,3.31]
[1763855696088,0.05359811,127.59,127.57,3.31]
[1763855696394,0.05359811,127.59,127.57,3.36356537]
[1763855700995,10.13209811,127.59,127.57,3.36356537]
[1763855702490,3.07359811,127.59,127.57,3.36356537]
[1763855710097,0.05359811,127.59,127.57,3.36356537]
[1763855710792,3.19359811,127.59,127.57,3.36356537]
[1763855717900,0.05359811,127.59,127.57,3.36356537]
[1763855718106,3.14,127.62,127.6,3.28]
[1763855719202,3.19831955,127.62,127.6,3.3401714]
[1763855719901,3.19831955,127.62,127.6,0.0601714]
[1763855721201,3.14,127.61,127.6,0.0601714]
[1763855721396,4.95587388,127.61,127.6,0.0601714]
[1763855722200,3.14,127.59,127.56,13.00947843]
[1763855722394,3.14,127.59,127.56,3.28]
[1763855723191,3.19503112,127.59,127.56,3.34005824]
[1763855725998,3.14,127.58,127.56,0.06005824]
[1763855726198,3.14,127.58,127.56,3.34005824]
[1763855726904,5.010905,127.59,127.56,3.34005824]
[1763855727092,3.19503112,127.59,127.56,13.06953667]
[1763855727296,3.19503112,127.59,127.57,3.28]
[1763855732015,0.05503112,127.59,127.57,3.28]
[1763855732311,3.19503112,127.59,127.57,3.28]
[1763855734709,0.05503112,127.59,127.58,3.28]
[1763855743211,0.05503112,127.59,127.58,13.00947843]
[1763855745720,16.38,127.63,127.59,7.0581]
[1763855745921,19.54,127.63,127.6,3.3]
[1763855746922,19.59516611,127.63,127.6,3.3519673]
[1763855748123,3.16,127.62,127.6,3.3519673]
[1763855759228,3.16,127.62,127.6,0.0519673]
[1763855760029,3.16,127.62,127.6,3.3519673]
[1763855761230,3.16,127.62,127.6,0.0519673]
[1763855761526,3.16,127.6,127.54,3.3]
[1763855762117,3.16,127.58,127.55,3.3]
[1763855762519,3.21891694,127.58,127.55,3.35464405]
[1763855765732,3.16,127.57,127.55,3.35464405]
[1763855770041,3.16,127.57,127.55,0.05464405]
[1763855770941,3.16,127.57,127.55,3.20464405]
[1763855778656,0.05891694,127.58,127.55,3.20464405]
[1763855779457,0.05891694,127.58,127.55,10.26514405]
[1763855779658,0.05891694,127.58,127.56,3.15]
[1763855782151,3.11891694,127.58,127.56,3.15]
[1763855783958,3.11891694,127.58,127.55,3.20464405]
[1763855785357,3.06,127.57,127.55,0.05464405]
[1763855787062,10.1196,127.57,127.55,0.05464405]
[1763855787362,3.06,127.56,127.55,0.05464405]
[1763855796864,4.8787935,127.56,127.55,0.05464405]
[1763855798166,3.2,127.55,127.51,10.3724]
[1763855798368,3.2,127.55,127.49,20.10297843]
[1763855798557,3.2,127.55,127.49,13.03947843]
[1763855798766,3.2,127.55,127.5,3.31]
[1763855799265,3.32989482,127.54,127.51,10.42537896]
[1763855799767,3.32989482,127.54,127.52,3.31]
[1763855800867,0.04989482,127.54,127.53,3.31]
[1763855805372,19.66,127.58,127.55,3.31]
[1763855806475,19.71387711,127.58,127.56,7.06]
[1763855806682,0.05387711,127.58,127.57,3.31]
[1763855806867,3.33387711,127.58,127.56,10.37]
[1763855807579,3.33387711,127.58,127.55,0.06001211]
[1763855807770,3.28,127.57,127.55,0.06001211]
[1763855817489,3.28,127.56,127.55,0.06001211]
[1763855828687,23.4396,127.57,127.55,3.19001211]
[1763855828893,19.51,127.57,127.55,3.19001211]
[1763855829390,3.13,127.56,127.55,3.19001211]
[1763855829794,3.13,127.56,127.55,0.06001211]
[1763855830595,19.51,127.57,127.55,3.19001211]
[1763855831492,19.51,127.57,127.56,3.13]
[1763855831693,19.51,127.57,127.55,7.12051211]
[1763855831888,19.51,127.57,127.55,10.25051211]
[1763855833893,16.38,127.57,127.56,3.13]
[1763855835198,19.51,127.57,127.56,3.13]
[1763855836696,3.13,127.56,127.55,0.06001211]
[1763855838699,4.9487935,127.56,127.55,0.06001211]
[1763855841396,3.13,127.54,127.5,9.72947843]
[1763855841698,3.13,127.53,127.49,12.85947843]
[1763855841904,3.13,127.52,127.49,3.13]
[1763855842407,3.18262222,127.52,127.49,3.18841351]
[1763855845405,5.00141572,127.52,127.49,0.05841351]
[1763855845606,3.13,127.51,127.49,0.05841351]
[1763855845815,4.9487935,127.5,127.49,0.05841351]
[1763855850416,3.13,127.49,127.45,10.1959]
[1763855851409,3.13,127.47,127.46,0.05828124]
[1763855851614,0.05348167,127.48,127.46,3.18828124]
[1763855851615,3.18348167,127.48,127.46,3.18828124]
[1763855852423,3.18348167,127.48,127.46,0.05828124]
[1763855855925,0.05348167,127.48,127.47,2.99]
[1763855857114,7.0622,127.53,127.49,2.99]
[1763855857115,3.17,127.52,127.49,2.99]
[1763855858228,3.2194036,127.52,127.49,10.10384365]
[1763855858425,3.2194036,127.52,127.5,2.99]
[1763855858727,0.0494036,127.52,127.5,2.99]
[1763855858934,3.1494036,127.52,127.5,2.99]
[1763855859226,3.1494036,127.52,127.49,0.05004365]
[1763855860026,3.1494036,127.52,127.49,10.17384365]
[1763855862027,0.0494036,127.52,127.5,3.06]
[1763855862329,0.0494036,127.52,127.51,3.06]
[1763855862524,0.0494036,127.52,127.5,10.1232]
[1763855862823,3.1,127.51,127.49,0.05004365]
[1763855864630,3.1,127.51,127.49,3.11004365]
[1763855865225,3.1494036,127.52,127.49,10.17384365]
[1763855865424,0.0494036,127.52,127.5,3.06]